Workbook

Sheet Sale-Lease-Back of 6000 sf
A1: 9600 Main Street, Clarence 14031 | B1: 71.15-1-6 | C1: Town Equalization Rate: | D1: =(B7/B8) -> 0.9500000516
A2: One story office building on 2.14 acres | C2: Current Village Taxes: | D2: 0
C3: Current County Taxes: | D3: 10000
A4: Gross ("Rentable") plus basement sf: | B4: 10176 | C4: Current School Taxes: | D4: 11727.67
A5: Useable sf: | B5: =(B16) -> 9700 | C5: Total Taxes: | D5: =SUM(D2:D4) -> 21727.67 | E5: =(D5/B4) -> 2.135187697 | F5: per sf rentable
A6: Useable/Rentable: | B6: =(B5/B4) -> 0.9532232704 | C6: Full Value Tax Rate: | D6: =(D5/B8) -> 0.0224361822
A7: Current Assessment | B7: 920000 | C7: Projected Assessment: | D7: =(D8*D1) -> 1384245.075
A8: Full Value Equivalent: | B8: 968421 | C8: Projected Tax Value: | D8: =(C44*F8) -> 1457100 | E8: Part of Value Below: | F8: 0.9
A9: Full Value Assessment per sf rentable: | B9: =(B8/B4) -> 95.16715802 | C9: Projected Assessment/sf: | D9: =(D7/$B$4) -> 136.030373
A10: Acres: | B10: 2.14
A11: Land acres minus building: | B11: =((B10*43560)-(B4))/43560 -> 1.906391185
A13: Projected Tenancies: | B13: Useable sf: | C13: Rent: | D13: Per Useable sf: | E13: Comments: | G13: Rent /Month:
A14: W. J. Cox | B14: 6000 | C14: =(D14*B14) -> 126000 | D14: 21 | E14: Plus gas, electricity, escalations over base | G14: =(C14/12) -> 10500
A15: Tenant | B15: 3700 | C15: =(D15*B15) -> 81400 | D15: 22 | E15: Plus gas, electricity, escalations over base | G15: =(C15/12) -> 6783.333333
A16: Total Income: | B16: =SUM(B14:B15) -> 9700 | C16: =SUM(C14:C15) -> 207400 | D16: =(C16/B16) -> 21.3814433 | G16: =(C16/12) -> 17283.33333
A18: Expenses:
A19: Taxes @: | B19: =(D6) -> 0.0224361822 | C19: =(-D5) -> -21727.67 | D19: =(C19/$B$5) -> -2.239965979 | F19: current
A20: Insurance: | C20: =(0.3*-$B$4) -> -3052.8 | D20: =(C20/$B$5) -> -0.3147216495 | F20: estimate
A21: Common Electric | C21: -800 | D21: =(C21/$B$5) -> -0.0824742268 | F21: estimate
A22: Common Gas: | C22: -500 | D22: -0.05154639175 | F22: estimate
A23: Inside Cleaning: | C23: =(1.25*-B5) -> -12125 | D23: -1.25 | F23: estimate
A24: Maintenance: | C24: -1000 | D24: =(C24/$B$5) -> -0.1030927835 | F24: estimate
A25: Snow Removal, Salting: | C25: -1500 | D25: -0.1546391753 | F25: estimate
A26: Landscaping & Lawn Care: | C26: -1000 | D26: =(C26/$B$5) -> -0.1030927835 | F26: estimate
A27: Legal, Accounting: | C27: -1000 | D27: =(C27/$B$5) -> -0.1030927835 | F27: estimate
A28: Total Operating Expenses: | C28: =SUM(C19:C27) -> -42705.47 | D28: -4.402625773
A29: Proforma Expenses:
A30: Vacancy, Credit Loss @: | B30: 0.05 | C30: =($C$16*-B30) -> -10370 | D30: -1.069072165
A31: Structural Reserve: | B31: 0.05 | C31: =($C$16*-B31) -> -10370 | D31: =(C31/$B$5) -> -1.069072165
A32: Property Management @: | B32: 0.05 | C32: =($C$16*-0.05) -> -10370 | D32: -1.069072165
A33: Proforma Total: | C33: =SUM(C30:C32) -> -31110 | D33: =SUM(D30:D32) -> -3.207216495
A34: Total Expenses: | C34: =(C28+C33) -> -73815.47 | D34: -7.609842268 | E34: =(C34/$B$4) -> -7.253878734
A36: Net Operating Income: | C36: =SUM(C16,C34) -> 133584.53 | D36: 13.77160103 | E36: =(C36/$B$4) -> 13.12741057
A37: Value @: | B37: =(C36/C37) -> 0.08905635333 | C37: 1500000 | D37: 154.6391753 | E37: =(C37/$B$4) -> 147.4056604 | F37: list price
A39: Development Costs:
A40: Closing Costs @: | B40: 0.03 | C40: =($C$37*B40) -> 45000 | D40: =(C40/$B$5) -> 4.639175258 | E40: =(C40/$B$4) -> 4.422169811 | F40: Bank, Appraisal, etc.. Fees
A41: Tenant fix up money per sf @: | B41: 20 | C41: =(B15*B41) -> 74000 | D41: =(C41/$B$5) -> 7.628865979 | E41: =(C41/$B$4) -> 7.272012579 | F41: carpet, paint, etc.
A42: Total: | C42: =SUM(C40:C41) -> 119000 | D42: =(C42/$B$5) -> 12.26804124 | E42: =(C42/$B$4) -> 11.69418239
A44: Value + Development: | C44: =(C37+C42) -> 1619000 | D44: =(C44/$B$5) -> 166.9072165 | E44: =(C44/$B$4) -> 159.0998428
A46: Sample Financing:
A47: First Mortgage: | D47: Second Mortgage:
A48: Annual Interest Rate: | B48: 0.0675 | D48: Annual Interest Rate: | E48: 0.06
A49: Amortization Months: | B49: 240 | D49: Amortization Months: | E49: 120
B52: Part of Value: | E52: Overall/Constant Rate: | F52: per month:
A53: Bank Mortgage: | B53: 0.75 | C53: =($C$44)*B53 -> 1214250 | D53: =-PMT(B48/12,B49,C53)*12 -> 110792.6399 | E53: =(D53/C53) -> 0.09124368117 | F53: =(D53/12) -> 9232.719989
A54: Second Mortgage: | B54: =(C54/$C$44) -> 0 | C54: 0 | D54: =(F54*12) -> 0 | E54: 0 | F54: =PMT((E48/12),E49,C54)*-1 -> 0
A55: Equity: | B55: =(C55/$C$44) -> 0.25 | C55: =($C$44-(C53+C54)) -> 404750 | D55: =(C36-(D53+D54)) -> 22791.89014 | E55: =(D55/C55) -> 0.05631103184 | F55: =(D55/12) -> 1899.324178
A56: Total: | B56: =SUM(B53:B55) -> 1 | C56: =SUM(C53:C55) -> 1619000 | D56: =SUM(D53:D55) -> 133584.53 | E56: =(D56/C56) -> 0.08251051884 | F56: =(D56/12) -> 11132.04417
A58: debt coverage ratio: | B58: =(D56/(D53+D54)) -> 1.205716645
A60: Average Annual Loan Amortization: | D60: =C53/(B49/12) -> 60712.5
A61: Combined Cash on Cash and Ave. Amortization/yr: | D61: =SUM(D60,D55) -> 83504.39014
A62: Combined Pretax Return on Equity: | E62: =(D61/C55) -> 0.2063110318
A64: Tax Deductions:
A65: (1.) Average Interest per year (on average half loan) | D65: =(B48)*(C53/2) -> 40980.9375
A67: (2.) Cost Recovery on Building:
A68: depreciation years: | B68: 39.5
A69: Building part of value: | B69: 0.8
A70: Initial Cost Recovery Basis on Building: | B70: =(C56*B69) -> 1295200
A71: Annual Cost Recovery Deduction: | D71: =(B70/B68) -> 32789.87342
A73: Combined Average Interest, Cost Recovery Deduction: | D73: =SUM(D71,D65) -> 73770.81092
A74: Average US, NYS combined Tax Rate: | B74: 0.35
A75: Average Income Tax Cash Value of Deductions per year: | D75: =(D73*B74) -> 25819.78382
A77: Combined Pretax Return Plus Tax Deduction Cash Value: | D77: =SUM(D75,D61) -> 109324.174
A78: Average After Tax Return on Equity: | E78: =(D77/C55) -> 0.2701029622
